bitfinex/quotes_ETHUSD_20260207
["timestamp","ask_amount","ask_price","bid_price","bid_amount"]
[1770460713274,1.47914431,2008.0,2007.7,0.001]
[1770460713475,1.24495792,2008.1,2007.7,0.001]
[1770460713476,1.75155453,2007.9,2007.7,0.001]
[1770460714082,1.47914431,2007.7,2007.1,0.001]
[1770460714458,1.47914431,2007.7,2007.2,0.001]
[1770460714654,1.75157313,2007.6,2007.2,0.001]
[1770460715993,1.37788057,2007.5,2007.1,0.001]
[1770460716155,1.37788057,2007.3,2006.7,0.001]
[1770460716358,1.37788057,2007.1,2005.9,1.24629201]
[1770460716556,1.37788057,2007.1,2006.2,1.24613118]
[1770460716772,1.37788057,2007.1,2006.2,1.24613471]
[1770460716983,1.37788057,2007.1,2006.1,1.2461562]
[1770460717400,1.37788057,2007.1,2006.0,0.62318201]
[1770460717581,1.37788057,2007.1,2006.1,1.24619221]
[1770460717908,1.37788057,2007.1,2006.0,1.86939997]
[1770460718280,1.37788057,2006.9,2006.0,1.86939997]
[1770460719097,1.37788057,2006.9,2006.0,0.62318201]
[1770460719307,1.37788057,2006.9,2005.9,1.24631593]
[1770460719909,1.37788057,2006.9,2005.7,1.24641635]
[1770460720425,1.37788057,2006.7,2005.4,1.24663408]
[1770460720786,1.37788057,2006.7,2005.5,1.23582574]
[1770460721990,1.24564572,2007.0,2006.0,1.22912479]
[1770460722390,2.62352629,2007.0,2006.1,1.24619909]
[1770460722807,1.37788057,2006.8,2005.5,1.2465323]
[1770460723012,1.37788057,2006.8,2005.4,1.24658384]
[1770460723013,1.37788057,2006.7,2005.4,1.24658384]
[1770460723182,1.37788057,2006.3,2005.5,1.86987861]
[1770460723583,1.37788057,2006.3,2005.5,0.62332951]
[1770460723979,1.37788057,2006.3,2005.2,1.89628278]
[1770460724181,1.37788057,2006.2,2005.2,0.64955653]
[1770460724385,1.37788057,2006.0,2005.2,0.64955653]
[1770460724785,1.37788057,2006.0,2004.9,1.2469118]
[1770460725083,1.37788057,2006.0,2005.0,1.24688187]
[1770460725312,1.37788057,2005.8,2004.9,1.24691174]
[1770460726205,1.37788057,2005.8,2004.7,5.07568573]
[1770460726516,1.37788057,2005.6,2004.7,0.08751045]
[1770460726748,1.37788057,2005.1,2003.9,0.003]
[1770460727027,0.62322381,2005.6,2004.7,1.2470515]
[1770460727186,0.62322381,2005.6,2004.3,13.5283205]
[1770460727187,2.00110438,2005.6,2004.3,13.5283205]
[1770460727391,1.37788057,2005.5,2004.7,1.24706327]
[1770460727593,1.70263577,2005.5,2004.8,0.62354276]
[1770460727802,0.62322381,2005.6,2004.8,0.62354276]
[1770460728016,2.62430814,2005.8,2005.4,0.001]
[1770460728398,1.37788057,2005.7,2005.4,0.001]
[1770460728730,1.37788057,2005.7,2005.2,0.001]
[1770460729043,1.51446936,2005.9,2005.2,0.001]
[1770460729518,2.89234993,2005.9,2005.2,0.001]
[1770460730219,0.78776125,2005.8,2005.2,0.001]
[1770460730429,2.62406067,2006.2,2005.2,0.001]
[1770460730792,1.37788057,2006.1,2005.2,0.001]
[1770460731999,1.37788057,2005.9,2005.2,0.001]
[1770460732425,1.37788057,2005.7,2005.2,0.001]
[1770460732613,0.26242661,2005.6,2005.2,0.001]
[1770460733708,1.64030718,2005.6,2005.2,0.001]
[1770460733916,1.37788057,2005.1,2004.3,0.001]
[1770460734109,1.37788057,2004.9,2004.3,0.001]
[1770460734331,2.62488775,2004.8,2004.3,0.001]
[1770460734714,1.37788057,2004.7,2004.3,0.001]
[1770460734924,1.64036935,2004.6,2004.3,0.001]
[1770460735454,1.64036935,2004.6,2003.5,1.24775404]
[1770460735455,1.64036935,2004.6,2003.5,1.24780242]
[1770460735629,0.26248878,2004.6,2003.5,1.24780242]
[1770460735808,1.24700718,2004.8,2003.5,2.52805256]
[1770460736126,2.62488775,2004.8,2003.5,2.52805256]
[1770460736328,4.98759921,2005.0,2003.7,1.24769177]
[1770460736540,1.37788057,2004.9,2003.7,1.24769177]
[1770460736834,1.37788057,2004.8,2003.6,1.24775197]
[1770460737511,1.37788057,2004.6,2002.9,1.26961515]
[1770460737725,1.37788057,2004.6,2003.6,1.24775077]
[1770460737920,1.37788057,2004.6,2003.6,1.24775392]
[1770460738326,1.24700718,2004.8,2003.5,4.99123945]
[1770460739036,2.62488775,2004.8,2003.5,4.99123945]
[1770460739338,1.37788057,2004.7,2003.4,1.24786807]
[1770460740448,1.24710994,2004.7,2003.5,0.0396496]
[1770460740619,0.62353116,2004.6,2003.5,0.0396496]
[1770460740940,1.24703449,2004.8,2004.1,0.001]
[1770460741143,1.37788057,2004.7,2004.1,0.001]
[1770460741306,1.24703449,2004.8,2004.1,0.001]
[1770460742220,1.37788057,2004.6,2004.1,0.001]
[1770460742535,11.31483871,2004.7,2004.1,0.001]
[1770460742536,1.37788057,2004.7,2004.1,0.001]
[1770460743036,1.8703995,2004.9,2004.1,0.001]
[1770460743340,0.6234482,2004.9,2004.1,1.24011622]
[1770460743539,2.62445249,2005.5,2004.1,1.24011622]
[1770460743707,1.37788057,2005.4,2004.1,0.001]
[1770460744535,1.24669625,2005.3,2004.1,2.48267743]
[1770460745926,2.62454125,2005.4,2004.1,2.48267743]
[1770460746844,1.35333068,2005.3,2004.1,2.48267743]
[1770460747042,2.11197422,2005.3,2004.2,0.74724484]
[1770460748259,1.35333068,2005.2,2004.2,0.74724484]
[1770460748422,1.35333068,2005.2,2004.1,1.24843743]
[1770460748623,1.35333068,2005.0,2004.1,0.001]
[1770460750022,1.24677371,2005.2,2004.1,0.001]
[1770460750425,1.24677371,2005.2,2004.1,1.19814078]
[1770460750647,2.00808172,2005.2,2004.2,1.2473805]
[1770460750829,1.37927264,2005.1,2004.2,1.2473805]
[1770460752143,2.00808172,2005.2,2004.2,1.2473805]
[1770460753153,5.08978488,2005.9,2004.3,1.18408755]
[1770460753154,1.37927264,2005.8,2004.3,1.18408755]
[1770460753323,1.37927264,2005.7,2004.3,1.18408755]
[1770460754433,1.37927264,2005.7,2004.3,1.18508755]
[1770460754629,0.002,2005.9,2004.6,1.1798438]
[1770460754838,0.002,2005.9,2004.8,12.49468251]
[1770460755046,1.24832601,2005.9,2004.8,12.49468251]
[1770460755242,0.002,2005.4,2004.9,1.24694498]
[1770460757429,0.002,2005.4,2004.8,4.98777993]
[1770460757630,0.002,2005.4,2004.9,0.74842554]
[1770460757827,0.002,2005.4,2004.1,0.001]
[1770460757828,1.38127264,2005.4,2004.1,0.001]
[1770460758039,1.37927264,2005.1,2004.1,0.001]
[1770460758252,1.37927264,2005.1,2004.5,1.24716342]
[1770460758439,1.37927264,2004.9,2004.2,1.24837013]
[1770460758658,0.1024,2005.3,2004.2,0.001]
[1770460758659,1.37927264,2004.7,2004.2,0.001]
[1770460759663,1.64190345,2004.7,2004.2,0.001]
[1770460760228,1.37927264,2004.6,2004.1,0.001]
[1770460760433,1.37927264,2004.6,2003.9,0.004]
[1770460760434,1.37927264,2004.4,2003.9,0.004]
[1770460760660,1.37927264,2004.4,2003.9,0.007]
[1770460761657,1.37927264,2004.4,2003.9,1.2545308]
[1770460761963,1.64191368,2004.4,2003.9,0.007]
[1770460762545,0.26264104,2004.4,2003.9,1.25456558]
[1770460762770,1.37927264,2004.5,2003.9,1.25456558]
[1770460762937,1.06626722,2004.4,2003.9,1.25456558]
[1770460763271,1.06626722,2004.4,2003.9,0.004]
[1770460763272,1.37927264,2004.4,2003.9,0.004]
[1770460763578,1.37927264,2004.2,2003.9,0.004]
[1770460763755,1.37927264,2004.2,2003.9,0.007]
[1770460763958,1.64192574,2004.2,2003.3,0.003]
[1770460764167,1.64192574,2004.2,2003.3,0.006]
[1770460764168,1.37927264,2004.0,2003.3,0.006]
[1770460764469,1.06584743,2003.9,2003.3,1.25391127]
[1770460764667,1.37927264,2003.9,2003.3,1.25391127]
[1770460764852,1.64194418,2003.9,2003.3,0.006]
[1770460765060,1.37927264,2003.7,2003.3,0.006]
[1770460765380,1.64194418,2003.9,2003.3,0.006]
[1770460765673,1.64194418,2003.9,2003.4,0.003]
[1770460766243,1.37927264,2003.9,2003.4,0.003]
[1770460766432,1.24750182,2004.1,2003.3,0.003]
[1770460766433,1.43638854,2004.1,2003.3,0.003]
[1770460766634,1.37927264,2003.7,2003.3,0.003]
[1770460768459,1.37927264,2003.7,2003.6,0.001]
[1770460768756,1.37927264,2003.5,2002.5,4.99300978]
[1770460768959,1.37927264,2003.5,2003.4,0.001]
[1770460769166,4.98977678,2004.1,2003.4,0.001]
[1770460769167,1.37927264,2003.8,2003.4,0.001]
[1770460769368,1.37927264,2003.8,2002.5,0.001]
[1770460769369,1.37927264,2003.6,2002.5,0.001]
[1770460769580,1.06240683,2003.5,2002.6,0.0611159]
[1770460769750,1.37927264,2003.9,2003.0,1.2481278]
[1770460769942,1.37927264,2003.9,2002.9,4.99251123]
[1770460769943,1.37927264,2003.7,2003.1,0.004]
[1770460770146,1.37927264,2003.7,2003.0,0.004]
[1770460770964,1.37927264,2004.0,2003.0,0.004]
[1770460771167,1.06233815,2003.9,2003.0,0.62849317]
[1770460771463,1.37927264,2004.0,2003.0,0.62849317]
[1770460771865,0.2646531,2004.2,2003.1,1.25206549]
[1770460772059,1.64392574,2004.2,2003.1,1.25206549]
[1770460774966,1.38127264,2004.2,2003.1,1.25206549]
[1770460775150,0.002,2004.4,2003.2,1.40476079]
[1770460775354,1.06156566,2004.3,2003.1,1.25206549]
[1770460775667,2.62856073,2004.4,2003.1,1.25206549]
[1770460775857,1.06157529,2004.3,2003.1,1.25206549]
[1770460776166,0.86789128,2004.3,2003.2,0.68688207]
[1770460776380,3.40782311,2004.3,2003.3,1.24794089]
[1770460776585,1.06162376,2004.2,2003.3,1.25194089]
[1770460776757,3.40782311,2004.3,2003.3,1.25194089]
[1770460776960,1.06161907,2004.2,2003.3,1.25194089]
[1770460777277,3.40782311,2004.3,2003.4,0.69305866]
[1770460777278,1.29256119,2004.0,2003.4,0.69305866]
[1770460777454,1.29256119,2004.0,2003.3,0.004]
[1770460777654,1.06143844,2003.9,2003.3,0.004]
[1770460777879,1.29256119,2004.2,2003.3,0.004]
[1770460778075,1.0615366,2004.1,2003.3,0.004]
[1770460778377,3.60164072,2004.0,2003.3,0.004]
[1770460778547,1.29256119,2003.9,2003.3,0.69711151]
[1770460779078,1.29256119,2003.9,2003.2,1.2479951]
[1770460779297,1.29256119,2003.7,2002.9,1.24815179]
[1770460779453,1.06121895,2003.6,2002.9,1.24814167]
[1770460779802,1.29256119,2003.7,2002.9,1.24814167]
[1770460779956,1.29256119,2003.5,2002.5,0.001]
[1770460780276,1.29256119,2003.5,2002.7,1.24827833]
[1770460780497,1.29256119,2003.3,2002.5,1.24942197]
[1770460780853,1.29256119,2003.1,2002.5,1.24942197]
[1770460781649,1.2476295,2003.8,2002.5,1.24942197]
[1770460781878,2.35259461,2003.7,2002.5,1.24942197]
[1770460782075,1.29256119,2003.5,2002.6,0.62441798]
[1770460782277,1.06003342,2003.4,2002.5,1.24943625]
[1770460782477,1.2478786,2003.4,2002.5,0.001]
[1770460782684,2.35207516,2003.3,2002.5,0.001]
[1770460782859,1.29256119,2003.3,2002.5,0.001]
[1770460783056,2.60614383,2003.2,2002.5,0.001]
[1770460783262,5.04848172,2003.5,2002.5,0.001]
[1770460783263,2.54039378,2003.5,2002.5,0.001]
[1770460783463,1.29256119,2003.4,2002.5,0.001]
[1770460784464,1.60780196,2003.6,2002.5,0.001]
[1770460784784,2.90036315,2003.6,2002.5,0.001]
[1770460785185,1.29256119,2003.4,2002.5,0.001]
[1770460785388,1.34967709,2003.4,2002.5,0.001]
[1770460785565,1.29256119,2003.2,2002.5,0.001]
[1770460785975,1.0603948,2003.1,2002.5,0.001]
[1770460786288,1.29256119,2003.1,2002.5,0.001]
[1770460786485,2.54068899,2003.0,2002.5,0.001]
[1770460786682,0.75332002,2002.9,2002.5,0.001]
[1770460787093,1.24804456,2003.2,2002.5,0.001]
[1770460787255,1.06144341,2003.1,2002.5,0.001]
[1770460787456,1.06259538,2003.0,2002.5,0.001]
[1770460787660,2.54060575,2003.2,2002.5,0.001]
[1770460787860,2.35516208,2003.1,2002.5,0.001]
[1770460788090,2.71548274,2003.0,2002.5,0.001]
[1770460788275,1.65288185,2003.0,2002.5,0.001]
[1770460788584,1.24831477,2002.7,2002.4,0.001]
[1770460788794,1.29256119,2002.7,2001.2,1.28484609]
[1770460788969,1.29256119,2002.7,2001.3,1.28484609]
[1770460788970,1.29256119,2002.5,2001.3,1.28484609]
[1770460789169,1.24827568,2002.8,2000.8,5.25794313]
[1770460789170,1.29256119,2002.8,2001.8,1.24887459]
[1770460789371,1.29256119,2002.8,2001.9,0.62443786]
[1770460789372,2.6087851,2002.7,2001.9,0.62443786]
[1770460789669,1.06214484,2002.6,2001.9,0.62443786]
[1770460789871,1.24822638,2002.9,2001.9,0.62443786]
[1770460790072,1.24806923,2003.1,2002.0,1.28484609]
[1770460790374,1.24806923,2003.1,2001.9,0.62443786]
[1770460790375,1.06221697,2003.0,2001.9,0.62443786]
[1770460790566,2.31046127,2002.9,2002.0,1.24875124]
[1770460790760,1.2482443,2002.9,2002.0,1.24875124]
[1770460790964,1.0624174,2002.8,2002.0,1.24875124]
[1770460791301,5.85211113,2003.0,2002.0,1.24875124]
[1770460791302,2.10764616,2003.0,2002.0,2.53359733]
[1770460791499,2.35506765,2002.9,2002.0,1.24875124]
[1770460791671,1.73883257,2002.8,2002.1,0.68681941]
[1770460792269,0.44627138,2002.8,2002.2,0.003]
[1770460792515,0.85950991,2003.0,2002.2,1.25162651]
[1770460792685,1.06265793,2002.9,2002.2,1.25162651]
[1770460792868,0.85950991,2003.0,2002.2,1.25162651]
[1770460793068,1.06261073,2002.9,2002.2,1.25162651]
[1770460793269,0.85950991,2003.0,2002.2,1.25162651]
[1770460793270,2.540632,2003.1,2002.2,1.25162651]
[1770460793491,1.81628859,2003.0,2002.3,0.6942952]
[1770460793768,0.7532894,2003.0,2002.3,0.6942952]
[1770460794568,1.06258085,2002.9,2002.3,1.94280541]
[1770460794769,2.00143547,2003.0,2002.3,1.94280541]
[1770460794970,1.29256119,2002.8,2002.3,0.001]
[1770460795195,2.00143547,2003.0,2002.3,0.001]
[1770460795196,2.35514367,2002.7,2002.3,0.001]
[1770460795392,1.06258248,2002.6,2002.3,0.001]
[1770460795594,3.29399666,2003.0,2002.3,0.001]
[1770460795908,1.06206912,2002.9,2002.3,0.001]
[1770460796207,1.06206912,2002.8,2002.3,0.001]
[1770460797101,2.310326,2002.8,2002.3,0.001]
[1770460797266,1.06206912,2002.7,2002.3,0.001]
[1770460797472,1.06206912,2002.6,2002.3,0.001]
[1770460797673,1.24825688,2002.8,2002.3,0.001]
[1770460797874,1.06178951,2002.7,2002.3,0.001]
[1770460798098,1.06178951,2002.6,2002.3,0.001]
[1770460798307,1.24826499,2002.8,2002.3,0.001]
[1770460798508,1.06169819,2002.7,2002.3,0.001]
[1770460798714,1.06169819,2002.6,2002.3,0.001]
[1770460798867,2.54056438,2003.2,2002.3,0.001]
[1770460799072,1.06183656,2003.1,2002.3,0.001]
[1770460799300,1.06183656,2003.0,2002.3,0.001]
[1770460799512,1.06183656,2002.9,2002.3,0.001]
[1770460799672,1.29256119,2003.1,2002.3,0.001]
[1770460799874,2.01149351,2003.2,2002.3,0.001]
[1770460799875,2.35440793,2003.0,2002.3,0.001]
[1770460800178,1.29256119,2002.8,2002.3,0.001]
[1770460800405,2.35440793,2002.7,2002.3,0.001]
[1770460800700,2.35440793,2002.7,2002.2,0.003]
[1770460800701,1.06184674,2002.6,2002.2,0.003]
[1770460800903,1.06184674,2002.5,2002.2,0.003]
[1770460801075,1.24838109,2002.6,2002.2,0.003]
[1770460801278,1.35052774,2003.1,2002.2,0.003]
[1770460801502,1.06188956,2003.0,2002.2,0.003]
[1770460801806,2.35445075,2002.9,2002.2,0.003]
[1770460802105,1.24807242,2003.1,2002.2,0.003]
[1770460802312,1.06160001,2003.0,2002.2,0.003]
[1770460802606,1.06160001,2002.9,2002.2,0.003]
[1770460803067,1.60778818,2003.6,2002.2,1.28784609]
[1770460803174,1.29256119,2003.4,2002.2,1.28784609]
[1770460803777,1.24776577,2003.6,2002.2,1.28784609]
[1770460803983,6.28353553,2003.7,2002.2,1.28784609]
[1770460803984,2.54025521,2003.7,2002.2,1.28784609]
[1770460804180,1.29256119,2003.7,2002.2,1.28784609]
[1770460804418,0.002,2004.1,2002.4,1.28484609]
[1770460804701,2.73143355,2004.1,2002.4,1.28484609]
[1770460804889,2.73143355,2004.1,2002.7,1.28484609]
[1770460804890,0.002,2004.1,2002.7,1.28484609]
[1770460805093,1.24945246,2004.1,2002.7,1.28484609]
[1770460805299,2.54202682,2004.1,2002.7,1.28484609]
[1770460805501,1.24944553,2004.1,2002.7,1.28484609]
[1770460805909,2.47789906,2004.1,2002.7,1.28484609]
[1770460806115,0.74694331,2004.0,2002.7,1.28484609]
[1770460806902,1.99446854,2004.0,2002.9,1.33894417]
[1770460807205,0.002,2003.3,2002.9,1.33894417]
[1770460808181,1.99445145,2004.0,2002.9,1.33894417]
[1770460808988,3.22290712,2004.0,2003.0,1.2481278]
[1770460809207,0.82149271,2003.9,2003.1,0.6240639]
[1770460809591,2.47596596,2004.0,2003.1,0.6240639]
[1770460810106,0.002,2004.1,2003.1,0.6240639]
[1770460810107,1.24944481,2004.1,2003.1,0.6240639]
[1770460810301,2.47986184,2004.1,2003.1,0.6240639]
[1770460810813,1.23241703,2004.1,2003.1,0.6240639]
[1770460811104,1.23241703,2004.1,2003.2,1.24800319]
[1770460811314,1.85479107,2004.1,2003.3,0.68640799]
[1770460811486,0.002,2004.1,2003.3,1.98853914]
[1770460812885,0.002,2004.1,2003.4,1.2478786]
[1770460814002,0.002,2004.1,2003.4,2.55000975]
[1770460814335,0.002,2004.1,2003.5,1.30213115]
[1770460814486,0.002,2004.1,2003.4,2.55000975]
[1770460814687,0.002,2004.1,2003.5,0.82279322]
[1770460815206,0.002,2004.1,2003.6,1.24775404]
[1770460815393,0.002,2004.1,2003.5,0.82279322]
[1770460815596,0.002,2004.1,2003.5,1.24781325]
[1770460816919,0.002,2004.1,2003.3,1.93431486]
[1770460817223,1.2329279,2004.1,2003.4,1.24786726]
[1770460817386,2.48042318,2004.1,2003.3,1.93430182]
[1770460817787,1.2309279,2004.0,2003.3,1.93430182]
[1770460818009,0.74720207,2004.0,2003.3,1.93430182]
[1770460818235,0.002,2004.1,2003.3,1.93430182]
[1770460820340,13.50880151,2004.1,2003.3,1.24789383]
[1770460821222,1.2309279,2004.0,2003.2,1.24796149]
[1770460821437,1.2309279,2003.9,2002.9,4.99375708]
[1770460821641,0.002,2004.1,2003.0,1.30213115]
[1770460821939,0.002,2004.1,2003.2,1.30213115]
[1770460822508,14.756253,2004.1,2003.1,0.62958882]
[1770460823137,12.27787361,2004.1,2003.1,1.93171997]
[1770460823342,0.002,2004.1,2003.2,2.55013434]
[1770460823929,0.002,2004.1,2003.3,1.30213115]
[1770460824136,0.002,2004.1,2003.4,1.55714458]
[1770460825544,0.002,2004.1,2003.5,1.24781632]
[1770460825741,0.002,2004.1,2003.5,2.54994747]
[1770460826544,0.002,2004.1,2003.6,1.30213115]
[1770460826839,0.002,2004.2,2003.6,1.30213115]
[1770460827014,0.002,2004.2,2003.7,1.5571259]
[1770460827416,0.002,2004.2,2003.8,1.2476295]
[1770460828442,0.002,2004.2,2003.8,2.54976065]
[1770460828647,1.2329279,2004.2,2003.4,1.50285701]
[1770460828828,1.2329279,2004.2,2003.5,1.24777004]
[1770460829442,2.48034245,2004.2,2003.1,4.99217169]
[1770460829850,2.48034245,2004.2,2003.1,6.29430284]
[1770460830451,2.4803198,2004.2,2003.1,6.29430284]
[1770460831019,1.2329279,2004.2,2003.1,6.29430284]
[1770460831240,0.002,2004.2,2003.3,1.30213115]
[1770460831448,0.002,2004.2,2003.4,1.2478786]
[1770460831825,0.002,2004.2,2003.2,5.74593895]
[1770460831826,1.2329279,2004.2,2003.2,2.00220471]
[1770460832020,13.50680151,2004.0,2003.2,1.24799131]
[1770460832947,13.50680151,2004.0,2003.3,0.001]
[1770460833117,13.50880151,2004.0,2003.3,0.001]
[1770460833928,1.24756724,2003.9,2003.3,0.001]
[1770460834129,2.47849514,2003.9,2003.3,0.001]
[1770460834441,3.20557249,2003.8,2003.3,0.001]
[1770460835521,1.2309279,2003.5,2003.0,0.001]
[1770460835745,1.2309279,2003.5,2002.5,1.24839531]
[1770460836043,1.23283676,2003.3,2002.2,1.25162651]
[1770460836250,1.23283676,2003.3,2002.3,0.75485095]
[1770460836449,1.23283676,2003.3,2002.3,2.00659733]
[1770460836655,1.23283676,2003.3,2002.3,0.75485095]
[1770460836825,1.23283676,2003.1,2002.2,1.25162651]
[1770460837143,1.06569484,2003.0,2002.2,1.25162651]
[1770460837345,2.48071536,2003.4,2002.2,1.25162651]
[1770460837547,2.29778056,2003.3,2002.2,1.25162651]
[1770460837727,1.41950972,2003.2,2002.2,2.50088958]
[1770460837926,1.0649438,2003.1,2002.2,2.50088958]
[1770460838131,2.31307816,2003.0,2002.2,1.25162651]
[1770460838333,1.0649438,2002.9,2002.2,1.25162651]
[1770460838522,1.0649438,2002.8,2002.2,1.25162651]
[1770460838724,2.48091403,2003.1,2002.2,1.25162651]
[1770460838928,1.06393334,2003.0,2002.2,1.25162651]
[1770460839257,1.41841808,2002.9,2002.2,2.50093939]
[1770460839453,1.60261741,2003.2,2002.2,2.50093939]
[1770460839655,1.23283676,2003.0,2002.2,2.50093939]
[1770460839836,1.06326552,2002.9,2002.2,1.25162651]
[1770460840030,1.06326552,2002.9,2002.2,0.003]
[1770460840231,1.60260154,2003.2,2002.2,0.003]
[1770460840530,1.06269617,2003.1,2002.2,1.25474638]
[1770460840734,0.35456592,2003.2,2002.2,1.25474638]
[1770460841051,1.24790668,2003.4,2002.4,1.25174638]
[1770460841353,1.23283676,2003.6,2002.4,1.25174638]
[1770460841354,1.06281865,2003.3,2002.4,1.25174638]
[1770460841562,1.24784459,2003.5,2002.4,1.25174638]
[1770460841723,1.06261902,2003.4,2002.4,1.25174638]
[1770460842032,1.06261902,2003.3,2002.5,1.24843945]
[1770460842354,3.22230554,2003.8,2002.7,1.25174638]
[1770460842655,1.06255179,2003.7,2002.7,1.25174638]
[1770460842955,1.06255179,2003.6,2002.7,1.25174638]
[1770460843260,1.06255179,2003.5,2002.7,1.25174638]
[1770460843461,4.4551423,2003.8,2002.7,1.25174638]
[1770460843629,3.23464567,2003.7,2002.7,1.25174638]
[1770460843936,1.06249873,2003.6,2002.7,1.25174638]
[1770460844730,1.06249873,2003.6,2002.8,1.24825244]
[1770460844731,2.31028037,2003.6,2002.8,1.24825244]
[1770460844930,1.06249873,2003.5,2002.8,1.24825244]
[1770460845757,1.06249873,2003.5,2002.5,1.24839685]
[1770460845758,1.23283676,2003.4,2002.5,1.24839685]
[1770460845976,1.23283676,2003.2,2002.6,1.24837485]
[1770460846126,1.45712091,2003.3,2002.6,1.24832795]
[1770460846330,1.06321997,2003.2,2002.7,1.24831212]
[1770460846573,1.23483676,2003.4,2002.5,4.99365246]
[1770460846788,2.31119552,2003.3,2002.4,1.24950179]
[1770460846930,2.48276006,2003.4,2002.4,1.24950179]
[1770460847133,1.06312832,2003.3,2002.4,1.24950179]
[1770460847448,0.002,2003.4,2002.5,0.81204167]
[1770460848439,0.002,2003.4,2002.5,2.06378805]
[1770460848649,0.002,2003.4,2002.6,1.25174638]
[1770460848854,0.002,2003.4,2002.7,1.24831477]
[1770460849864,0.002,2003.4,2002.7,2.50006115]
[1770460850053,0.002,2003.4,2002.8,0.74933203]
[1770460850452,0.002,2003.4,2002.9,1.25174638]
[1770460850841,0.002,2003.4,2003.0,1.2481278]
[1770460851549,0.002,2003.4,2003.0,2.49987418]
[1770460851947,0.002,2003.4,2003.1,1.25174638]
[1770460852153,0.002,2004.2,2003.3,1.25174638]
[1770460853084,0.002,2004.2,2003.5,1.25174638]
[1770460854095,0.002,2004.4,2003.7,1.48531668]
[1770460854400,0.002,2005.3,2004.2,1.25174638]
[1770460854960,0.002,2005.3,2004.6,1.25174638]
[1770460855200,0.002,2005.3,2004.7,1.5016404]
[1770460855704,0.002,2005.3,2004.7,0.24989402]
[1770460856007,0.002,2005.3,2004.5,1.24719381]
[1770460856209,0.002,2005.3,2004.4,1.24724757]
[1770460856890,1.23483676,2005.3,2004.4,1.24724757]
[1770460857092,0.002,2005.3,2004.3,6.24080719]
[1770460857290,0.002,2005.3,2004.5,1.25174638]
[1770460857906,0.002,2005.3,2004.4,1.12298313]
[1770460858601,0.002,2005.3,2004.5,1.25174638]
[1770460859174,0.002,2005.3,2004.6,2.49887797]
[1770460859411,0.002,2005.3,2004.6,1.24713159]
[1770460859592,0.002,2005.3,2004.7,0.6235658]
[1770460859774,0.002,2005.1,2004.7,0.6235658]
[1770460861000,0.002,2005.1,2004.7,1.87531218]
[1770460861189,0.002,2005.1,2004.9,1.25174638]
[1770460861393,0.002,2005.9,2005.0,1.30886228]
[1770460862676,0.002,2005.9,2005.4,1.25174638]
[1770460863119,1e-08,2006.3,2005.8,1.25174638]
[1770460863313,1e-08,2006.3,2005.9,0.2498194]
[1770460863619,1e-08,2006.3,2005.9,1.50156578]
[1770460863998,0.002,2006.9,2005.9,1.50156578]
[1770460864331,1e-08,2007.1,2006.1,1.25174638]
[1770460864821,1e-08,2007.1,2005.9,1.50156578]
[1770460865202,1e-08,2007.1,2006.1,1.25174638]
[1770460865415,1e-08,2007.1,2006.3,1.25174638]
[1770460865805,1e-08,2007.1,2006.2,0.25551235]
[1770460866225,1e-08,2007.1,2006.2,1.56706667]
[1770460867089,1e-08,2007.1,2006.3,2.55762918]
[1770460867437,1e-08,2007.1,2006.4,1.31155432]
[1770460867738,1e-08,2007.1,2006.5,0.26147451]
[1770460867896,1e-08,2007.1,2006.3,1.30319076]
[1770460867897,1e-08,2007.1,2006.3,1.24607486]
[1770460870940,1e-08,2007.1,2006.4,1.26208207]
[1770460871322,1e-08,2007.1,2006.5,2.50803273]
[1770460871720,1e-08,2007.1,2006.6,1.26208207]
[1770460872224,1e-08,2007.1,2006.5,1.24595066]
[1770460872426,1e-08,2007.1,2006.6,0.62297533]
[1770460872627,0.002,2006.9,2006.6,0.62297533]
[1770460873325,0.002,2006.9,2006.7,1.24582648]
[1770460874539,0.002,2006.9,2006.6,1.24588464]
[1770460875543,0.002,2006.9,2006.4,6.24690405]
[1770460875742,0.002,2006.9,2006.5,1.12304583]
[1770460875939,0.002,2006.9,2006.5,2.3851279]
[1770460876529,2.53087567,2008.0,2006.6,1.26208207]
[1770460877352,2.53087567,2008.0,2006.7,1.24582648]
[1770460877556,2.53087567,2008.0,2006.7,2.50790855]
[1770460877728,2.53087567,2008.0,2006.9,1.26208207]
[1770460877729,0.002,2008.0,2006.9,1.26208207]
[1770460879517,0.002,2008.0,2007.0,1.24564025]
[1770460879723,1.28584412,2008.0,2007.0,1.24564025]
[1770460879922,12.57173428,2008.0,2007.0,1.24564025]
[1770460880156,1.28384412,2007.9,2007.0,1.24564025]
[1770460880375,1.28584412,2008.0,2007.1,0.62282013]
[1770460881844,1.28584412,2008.0,2007.2,1.24551614]
[1770460881845,0.002,2008.0,2007.2,1.24551614]
[1770460882341,0.002,2008.0,2007.2,2.50759821]
[1770460883349,0.002,2008.0,2007.2,1.24551614]
[1770460883551,0.002,2008.0,2007.3,0.68504008]
[1770460884231,0.002,2008.0,2007.4,1.24539204]
[1770460884926,0.002,2007.8,2007.4,1.24539204]
[1770460885560,0.002,2007.8,2007.3,1.24641854]
[1770460886156,2.53100577,2007.8,2007.3,0.001]
[1770460886449,1.5369447,2007.7,2007.3,0.001]
[1770460886752,1.24716165,2007.8,2007.3,0.001]
[1770460886753,0.002,2007.8,2007.3,0.001]
[1770460890250,1.28384412,2007.7,2007.3,0.001]
[1770460890424,1.28384412,2007.7,2007.0,0.001]
[1770460890862,0.002,2007.8,2007.0,0.001]
[1770460891238,1.28384412,2007.7,2007.0,0.001]
[1770460891434,1.28384412,2007.6,2007.0,0.001]
[1770460892358,2.52914219,2007.6,2007.0,0.001]
[1770460893129,1.24529807,2007.6,2007.0,0.001]
[1770460893443,2.34803463,2007.5,2007.0,0.001]
[1770460893635,1.28384412,2007.4,2007.0,0.001]
[1770460895630,2.52924005,2007.4,2007.0,0.001]
[1770460896451,1.25625769,2007.3,2007.0,0.001]
[1770460896635,2.50171426,2007.3,2007.0,0.001]
[1770460897049,2.32073891,2007.2,2006.4,0.001]
[1770460897343,1.54672654,2007.1,2006.6,1.245871]
[1770460897540,2.50168407,2007.4,2006.6,1.245871]
[1770460897745,1.06446925,2007.3,2006.6,1.29570654]
[1770460897953,1.06446925,2007.2,2006.6,1.29570654]